bitfinex/quotes_ETHUSD_20251127
["timestamp","ask_amount","ask_price","bid_price","bid_amount"]
[1764258878471,0.2726,3016.4,3016.3,3.34947329]
[1764258879207,0.2726,3016.4,3016.3,0.0341532]
[1764258879499,0.2726,3016.4,3016.3,0.212]
[1764258879500,0.7327,3016.4,3016.3,0.212]
[1764258879691,0.7327,3016.4,3016.3,3.56047329]
[1764258879886,1.0420601,3016.4,3016.3,3.56047329]
[1764258881507,1.0420601,3016.4,3016.3,0.212]
[1764258882501,1.47837091,3016.4,3016.3,0.212]
[1764258882689,1.0420601,3016.4,3016.3,0.212]
[1764258882872,1.0420601,3016.4,3016.3,0.001]
[1764258884408,0.0046,3016.3,3016.2,3.31698523]
[1764258884585,0.3147601,3016.3,3016.2,3.28383093]
[1764258884908,0.8051601,3016.3,3016.1,3.31549231]
[1764258885105,0.4904,3016.3,3016.2,0.0331543]
[1764258885311,0.4932,3016.2,3016.1,3.3486477]
[1764258885816,0.7308,3016.2,3016.1,3.3486477]
[1764258886177,1.04109202,3016.2,3016.1,0.03315539]
[1764258886382,1.04109202,3016.2,3016.1,3.34869532]
[1764258887010,0.0034,3016.4,3016.1,7.81756933]
[1764258887210,0.0034,3016.4,3016.3,0.4657]
[1764258887437,0.0034,3016.4,3016.3,0.4988532]
[1764258887727,0.0034,3016.4,3016.1,3.31553993]
[1764258887728,0.2402,3016.2,3016.1,3.31553993]
[1764258887911,0.2402,3016.2,3016.1,3.34869532]
[1764258888273,0.2402,3016.2,3016.1,7.35186933]
[1764258888482,0.2402,3016.2,3016.1,3.31553993]
[1764258888778,0.2402,3016.2,3016.0,6.84229186]
[1764258888779,0.7281,3016.2,3016.0,6.84229186]
[1764258888978,0.0049,3016.1,3016.0,3.526642]
[1764258889203,0.0034,3016.4,3016.0,6.84229186]
[1764258889425,0.2402,3016.1,3016.0,3.526642]
[1764258889996,0.2402,3016.1,3016.0,3.31564986]
[1764258889997,0.7281,3016.1,3016.0,3.31564986]
[1764258891920,0.2402,3016.1,3015.9,0.001]
[1764258892220,0.4879,3016.3,3015.9,0.001]
[1764258892416,0.0034,3016.4,3015.9,0.001]
[1764258892716,0.31021913,3016.3,3015.9,0.4693]
[1764258892915,0.4938,3016.4,3015.9,0.4693]
[1764258893096,0.31021913,3016.3,3015.9,0.001]
[1764258893290,0.4938,3016.4,3015.9,0.001]
[1764258893499,0.31020625,3016.3,3015.9,0.001]
[1764258893695,0.4938,3016.4,3015.9,0.001]
[1764258893906,0.31020627,3016.3,3015.9,0.001]
[1764258894215,0.4938,3016.4,3016.0,6.63129972]
[1764258894515,0.31019394,3016.3,3016.1,0.03315539]
[1764258894714,0.4938,3016.4,3016.1,0.03315539]
[1764258895014,0.31019394,3016.3,3016.1,0.03315539]
[1764258895217,0.2402,3016.2,3016.1,0.03315539]
[1764258895713,0.2402,3016.2,3016.0,3.31564986]
[1764258896015,0.0049,3016.1,3016.0,3.31564986]
[1764258896220,0.31509115,3016.1,3015.9,0.001]
[1764258896408,1.03837188,3016.0,3015.9,0.001]
[1764258898215,1.4737608,3016.0,3015.9,0.001]
[1764258900421,4.88881066,3016.0,3015.9,0.001]
[1764258900920,1.6847608,3016.0,3015.9,0.001]
[1764258901319,5.00041066,3016.0,3015.9,0.001]
[1764258902318,5.50531466,3016.0,3015.9,0.001]
[1764258902509,6.23090877,3016.0,3015.9,0.001]
[1764258903498,6.26252694,3016.0,3015.9,0.001]
[1764258906207,1.79558416,3016.0,3015.9,0.001]
[1764258906720,5.11123402,3016.0,3015.9,0.001]
[1764258906901,1.79558416,3016.0,3015.9,0.001]
[1764258907097,5.11123402,3016.0,3015.9,0.001]
[1764258907303,5.51673802,3016.0,3015.9,0.001]
[1764258907509,6.52046598,3016.0,3015.9,0.001]
[1764258908803,6.65331993,3016.0,3015.9,0.001]
[1764258909018,6.62090176,3016.0,3015.9,0.001]
[1764258909215,6.83190176,3016.0,3015.9,0.001]
[1764258909633,0.405504,3015.9,3015.6,0.001]
[1764258909839,0.703904,3015.7,3015.6,0.001]
[1764258910135,1.01407588,3015.7,3015.6,0.001]
[1764258910431,0.504904,3015.6,3015.5,0.001]
[1764258910633,0.504904,3015.6,3015.2,0.001]
[1764258910634,1.13109811,3015.5,3015.2,0.001]
[1764258910804,0.512204,3015.3,3015.2,0.001]
[1764258911004,0.82237588,3015.3,3015.2,0.001]
[1764258911204,1.62481941,3015.3,3015.2,0.001]
[1764258912236,1.83581941,3015.3,3015.2,0.001]
[1764258912816,5.87783311,3015.3,3015.2,0.001]
[1764258913346,1.13109811,3015.2,3014.5,0.001]
[1764258913503,0.945504,3014.6,3014.5,0.001]
[1764258913707,1.46667588,3014.6,3014.5,0.001]
[1764258913935,1.77357588,3014.6,3014.5,0.001]
[1764258914735,4.68446555,3014.6,3014.5,0.001]
[1764258915330,4.47346555,3014.6,3014.5,0.001]
[1764258915507,5.91380125,3014.6,3014.5,0.001]
[1764258916334,2.07871158,3014.6,3014.5,0.001]
[1764258916622,5.31270125,3014.6,3014.5,0.001]
[1764258916824,5.61960125,3014.6,3014.5,0.001]
[1764258917169,5.71900125,3014.6,3014.5,0.001]
[1764258918020,5.75141942,3014.6,3014.5,0.001]
[1764258918236,5.65201942,3014.6,3014.5,0.001]
[1764258918420,5.54041942,3014.6,3014.5,0.001]
[1764258918623,5.34511942,3014.6,3014.5,0.001]
[1764258919239,2.02792975,3014.6,3014.5,0.001]
[1764258919442,5.34511942,3014.6,3014.5,0.001]
[1764258921819,5.54041942,3014.6,3014.5,0.001]
[1764258922021,5.75141942,3014.6,3014.5,0.001]
[1764258924652,6.47701353,3014.6,3014.5,0.001]
[1764258927442,6.47621353,3014.6,3014.5,0.001]
[1764258929952,6.60914077,3014.6,3014.5,0.001]
[1764258933457,5.68653677,3014.6,3014.5,0.001]
[1764258933656,5.07450107,3014.6,3014.5,0.001]
[1764258933858,5.48000507,3014.6,3014.5,0.001]
[1764258934640,5.26900507,3014.6,3014.5,0.001]
[1764258934838,5.26900507,3014.6,3014.5,0.4926]
[1764258934839,4.79087783,3014.6,3014.5,0.4926]
[1764258935037,5.00187783,3014.6,3014.5,0.9541]
[1764258935249,5.00187783,3014.6,3014.5,0.4926]
[1764258935449,5.57907783,3014.6,3014.5,0.001]
[1764258935865,6.3237043,3014.6,3014.5,0.001]
[1764258936066,6.5347043,3014.6,3014.5,0.001]
[1764258936366,6.3237043,3014.6,3014.5,0.001]
[1764258936541,6.0569043,3014.6,3014.5,0.4926]
[1764258936741,5.10127783,3014.6,3014.5,0.4926]
[1764258937670,5.19107783,3014.6,3014.5,0.001]
[1764258937967,5.00187783,3014.6,3014.5,0.4926]
[1764258938665,5.65227783,3014.6,3014.5,0.001]
[1764258939066,5.19107783,3014.6,3014.5,0.001]
[1764258939271,6.32551376,3014.6,3014.5,0.001]
[1764258939868,5.92531376,3014.6,3014.5,0.001]
[1764258940076,6.13631376,3014.6,3014.5,0.001]
[1764258940644,6.21911376,3014.6,3014.5,0.001]
[1764258940846,6.31851376,3014.6,3014.5,0.001]
[1764258941866,6.78671376,3014.6,3014.5,0.001]
[1764258942193,5.48739159,3014.6,3014.5,0.4567]
[1764258942344,4.59637383,3014.6,3014.5,0.9496]
[1764258942549,4.59637383,3014.6,3014.5,0.4567]
[1764258942756,3.87077972,3014.6,3014.5,0.4567]
[1764258944567,3.83836155,3014.6,3014.5,0.4567]
[1764258944758,3.62736155,3014.6,3014.5,0.4567]
[1764258944959,3.87077972,3014.6,3014.5,0.4567]
[1764258947276,0.52117188,3014.6,3014.5,0.9496]
[1764258947481,3.65977972,3014.6,3014.5,0.9496]
[1764258947679,3.87077972,3014.6,3014.5,0.9496]
[1764258950379,3.87277972,3014.6,3014.5,0.9496]
[1764258951079,3.87197972,3014.6,3014.5,0.9496]
[1764258953080,3.66097972,3014.6,3014.5,0.9496]
[1764258953256,3.83956155,3014.6,3014.5,0.9496]
[1764258953858,3.87197972,3014.6,3014.5,0.4567]
[1764258954284,4.06407972,3014.6,3014.5,0.001]
[1764258956182,3.87197972,3014.6,3014.5,0.4567]
[1764258960759,8.24158436,3014.6,3014.5,0.001]
[1764258961096,0.31137188,3014.6,3014.5,0.9496]
[1764258961384,0.52237188,3014.6,3014.5,0.9496]
[1764258962280,3.83956155,3014.6,3014.5,0.9496]
[1764258962499,0.52237188,3014.6,3014.5,0.9496]
[1764258963402,0.31137188,3014.6,3014.5,0.9496]
[1764258966393,0.31137188,3014.6,3014.5,1.39581943]
[1764258967773,0.31137188,3014.6,3014.5,0.4567]
[1764258968188,0.31137188,3014.6,3014.5,0.9496]
[1764258970396,3.62856155,3014.6,3014.5,0.4567]
[1764258970601,0.31137188,3014.6,3014.5,0.9079]
[1764258973679,0.31137188,3014.6,3014.5,4.67057172]
[1764258973993,0.31137188,3014.6,3014.5,1.35327201]
[1764258974863,0.31057188,3014.6,3014.5,1.35327201]
[1764258975093,3.62776155,3014.6,3014.5,0.001]
[1764258975291,0.31057188,3014.6,3014.5,0.9344]
[1764258976299,3.62776155,3014.6,3014.5,0.4832]
[1764258976893,3.70876155,3014.6,3014.5,0.001]
[1764258977799,3.74117972,3014.6,3014.5,0.001]
[1764258978916,4.32407972,3014.6,3014.5,0.001]
[1764258979572,3.84057972,3014.6,3014.5,0.001]
[1764258979905,4.32407972,3014.6,3014.5,0.001]
[1764258980094,5.10929661,3014.6,3014.5,0.001]
[1764258980466,5.51480061,3014.6,3014.5,0.001]
[1764258980667,6.24039472,3014.6,3014.5,0.001]
[1764258981201,7.13602734,3014.6,3014.5,0.001]
[1764258981505,7.10360917,3014.6,3014.5,0.001]
[1764258982173,6.20797655,3014.6,3014.5,0.001]
[1764258982502,6.24039472,3014.6,3014.5,0.001]
[1764258984676,6.24039472,3014.6,3014.2,0.001]
[1764258984677,0.504904,3014.3,3014.2,0.001]
[1764258984899,3.76590864,3014.3,3014.2,0.001]
[1764258985085,4.25350864,3014.3,3014.2,0.001]
[1764258985294,5.28039037,3014.3,3014.2,0.001]
[1764258985899,8.38691019,3014.3,3014.2,0.001]
[1764258986088,9.98659955,3014.3,3014.2,0.001]
[1764258986278,7.69940719,3014.3,3014.2,0.001]
[1764258986487,9.09267157,3014.3,3014.2,0.001]
[1764258986786,9.19186158,3014.3,3014.2,0.001]
[1764258987195,9.40286158,3014.3,3014.2,0.001]
[1764258988006,6.90466922,3014.3,3014.2,0.001]
[1764258988307,6.98271547,3014.3,3014.2,0.001]
[1764258990681,6.98271547,3014.3,3014.2,0.4832]
[1764258990682,5.77441147,3014.3,3014.2,0.4832]
[1764258990882,3.871128,3014.3,3014.2,0.9344]
[1764258991098,0.52119001,3014.3,3014.2,0.9344]
[1764258991790,3.91970983,3014.3,3014.2,0.001]
[1764258992089,7.95143699,3014.3,3014.2,0.001]
[1764258992288,7.91901882,3014.3,3014.2,0.001]
[1764258993181,8.64461293,3014.3,3014.2,0.001]
[1764258993514,1.13109811,3014.2,3013.9,0.001]
[1764258993705,3.59389047,3014.0,3013.9,0.001]
[1764258994012,3.90408048,3014.0,3013.9,0.001]
[1764258994315,4.39168048,3014.0,3013.9,0.001]
[1764258994684,7.70953051,3014.0,3013.9,0.001]
[1764258995312,7.92053051,3014.0,3013.9,0.001]
[1764258995494,9.27196536,3014.0,3013.9,0.001]
[1764258997017,8.78436536,3014.0,3013.9,0.001]
[1764258997911,5.77157889,3014.0,3013.9,0.001]
[1764258998114,6.31859117,3014.0,3013.9,0.001]
[1764258998324,6.31859117,3014.0,3013.9,0.9344]
[1764258998325,1.06820229,3014.0,3013.9,0.9344]
[1764258998523,0.31019001,3014.0,3013.9,0.9344]
[1764258998690,3.62724004,3014.0,3013.9,0.9344]
[1764258998895,0.30939001,3014.0,3013.9,0.9344]
[1764258999228,0.30939001,3014.0,3013.9,4.25236011]
[1764258999394,0.002,3014.6,3013.9,4.25236011]
[1764258999395,0.002,3014.6,3013.9,5.23822238]
[1764258999720,0.03441817,3014.6,3014.5,0.6643]
[1764258999921,4.07720195,3014.6,3014.5,0.6643]
[1764259000621,4.07720195,3014.6,3014.5,0.4822]
[1764259000622,4.17660195,3014.6,3014.5,0.4822]
[1764259000926,0.72559411,3014.5,3014.2,0.1902]
[1764259001121,0.03241817,3014.4,3014.2,0.6425]
[1764259001493,0.03241817,3014.4,3014.3,0.9506]
[1764259002399,0.03241817,3014.4,3014.3,0.4983]
[1764259002600,0.002,3014.1,3013.9,0.001]
[1764259002915,3.41725003,3014.0,3013.9,0.001]
[1764259003312,0.002,3014.1,3013.9,0.9516]
[1764259003511,0.002,3014.1,3014.0,0.4983]
[1764259003719,0.002,3014.1,3014.0,0.9506]
[1764259004413,3.31973995,3014.1,3014.0,0.9506]
[1764259004731,0.002,3014.1,3014.0,0.9506]
[1764259007796,0.002,3014.1,3014.0,1.37766257]
[1764259008406,0.002,3014.1,3014.0,4.6955126]
[1764259009395,0.002,3014.1,3014.0,1.37766257]
[1764259009799,0.002,3014.1,3014.0,0.9506]
[1764259010100,0.002,3014.1,3014.0,4.26845003]
[1764259010297,0.002,3014.1,3014.0,0.9506]
[1764259011229,0.31193991,3014.1,3014.0,0.9506]
[1764259013521,0.31193991,3014.1,3014.0,0.4983]
[1764259014236,0.31193991,3014.1,3014.0,0.9506]
[1764259016744,0.31193991,3014.1,3014.0,0.4983]
[1764259018738,0.31193991,3014.1,3014.0,0.9506]
[1764259019410,0.31193991,3014.1,3014.0,1.70945391]
[1764259019846,0.31193991,3014.1,3014.0,0.9506]
[1764259020426,0.31193991,3014.1,3014.0,0.9516]
[1764259020832,0.31193991,3014.1,3014.0,4.26945003]
[1764259021520,0.002,3014.1,3014.0,4.26945003]
[1764259022232,0.002,3014.6,3014.4,0.6885]
[1764259022413,0.0012,3014.8,3014.7,0.4983]
[1764259022611,0.0012,3014.8,3014.7,1.29528592]
[1764259023227,0.0012,3014.8,3014.7,4.61236556]
[1764259024038,0.0012,3014.8,3014.7,1.29528592]
[1764259024326,0.0012,3014.8,3014.7,4.26767964]
[1764259027420,0.0012,3014.8,3014.7,4.36767964]
[1764259027620,0.002,3015.0,3014.9,0.1]
[1764259027834,0.002,3015.0,3014.9,1.2533]
[1764259028447,0.002,3015.0,3014.9,1.1533]
[1764259028950,0.002,3015.0,3014.9,1.93204593]
[1764259029453,0.002,3015.0,3014.9,5.24890552]
[1764259030521,0.002,3015.0,3014.9,5.28207411]
[1764259031551,0.002,3015.0,3014.9,5.24890552]
[1764259032450,0.002,3015.0,3014.9,5.28207411]
[1764259032850,0.002,3015.0,3014.9,1.93444593]
[1764259033059,0.002,3015.0,3014.9,5.28447411]
[1764259034553,0.0854,3015.0,3014.9,1.02291452]
[1764259034852,0.0893,3015.0,3014.8,0.03316969]
[1764259035156,0.002,3015.0,3014.9,0.4593]
[1764259036655,0.002,3015.0,3014.9,0.49246859]
[1764259037232,0.0854,3015.0,3014.7,0.03317079]
[1764259037539,0.002,3015.0,3014.7,0.48887079]
[1764259037855,0.002,3015.0,3014.9,0.4593]
[1764259038234,0.002,3015.0,3014.9,0.915]
[1764259038449,0.002,3015.0,3014.9,1.34151476]
[1764259038650,0.002,3015.0,3014.9,1.37468335]
[1764259039588,0.002,3015.0,3014.9,4.69154294]
[1764259041464,0.002,3015.0,3014.9,4.65837435]
[1764259041640,0.002,3015.0,3014.9,4.89119786]
[1764259041845,0.002,3015.0,3014.9,4.92436645]
[1764259043867,0.002,3015.0,3014.9,5.64996056]
[1764259044372,0.002,3015.0,3014.9,5.61679197]
[1764259044589,0.002,3015.0,3014.9,5.64996056]
[1764259045831,0.002,3015.0,3014.9,5.54996056]
[1764259046033,0.0012,3015.0,3014.9,5.54996056]
[1764259047655,0.0012,3015.0,3014.9,4.92826846]
[1764259048038,0.0012,3015.0,3014.9,4.96143705]
[1764259048348,0.0012,3015.0,3014.9,5.41713705]
[1764259049539,0.0012,3015.0,3014.9,5.38396846]
[1764259049868,0.0012,3015.0,3014.9,5.41713705]
[1764259050166,0.0012,3015.0,3014.9,5.51713705]
[1764259051992,0.0012,3015.0,3014.9,4.92826846]
[1764259053692,0.0012,3015.0,3014.9,5.41713705]
[1764259054461,0.0012,3015.0,3014.9,4.69154294]
[1764259054697,0.0012,3015.0,3014.9,4.20267435]
[1764259055202,0.0012,3015.0,3014.9,4.69154294]
[1764259056278,0.0012,3015.0,3014.9,4.23584294]
[1764259056479,0.39511827,3015.0,3014.8,3.31792393]
[1764259056682,0.49651966,3014.9,3014.8,0.001]
[1764259057067,0.97371966,3014.9,3014.8,0.03416969]
[1764259057766,0.97371966,3014.9,3014.8,0.001]
[1764259058672,0.31051966,3014.9,3014.8,0.4603]
[1764259059007,0.40781966,3014.9,3014.8,0.001]
[1764259059368,0.88121966,3014.9,3014.8,0.001]
[1764259060001,0.40781966,3014.9,3014.8,0.001]
[1764259062810,0.31051966,3014.9,3014.8,0.9371]
[1764259063170,0.31051966,3014.9,3014.8,0.97026969]
[1764259063478,0.31051966,3014.9,3014.8,0.51676969]
[1764259063903,0.31051966,3014.9,3014.8,0.97026969]
[1764259064504,0.31051966,3014.9,3014.8,5.06888168]
[1764259064872,0.0012,3015.0,3014.8,8.38585129]
[1764259065066,0.0012,3015.0,3014.9,0.9361]
[1764259065274,0.31141247,3015.0,3014.9,0.9361]
[1764259066475,0.31141247,3015.0,3014.9,0.96926859]
[1764259066798,0.31141247,3015.0,3014.9,4.6712132]
[1764259066997,0.76001228,3015.7,3014.9,7.98807279]
[1764259067207,3.31614459,3015.6,3015.0,0.211]
[1764259067403,0.002,3015.7,3015.0,0.6645]
[1764259068504,0.002,3015.7,3015.1,0.67886639]
[1764259068803,0.002,3015.7,3015.2,3.31652958]
[1764259069505,0.0604,3015.7,3015.2,3.31652958]
[1764259069972,0.0604,3015.7,3015.2,0.03316529]
[1764259069973,0.0596,3015.7,3015.2,0.03316529]
[1764259070669,0.0012,3015.7,3015.3,3.76991959]
[1764259071790,0.0012,3015.7,3015.3,3.31641959]
[1764259072487,0.0012,3015.7,3015.3,3.34958378]
[1764259072991,0.0584,3015.4,3015.0,3.52774272]
[1764259073190,0.0012,3015.7,3015.1,0.22536639]
[1764259074567,0.0012,3015.7,3015.2,3.31652958]
[1764259074792,0.0012,3015.7,3015.3,0.03316419]
[1764259076889,0.0596,3015.7,3015.3,0.03316419]
[1764259077686,0.0596,3015.7,3015.2,0.03316529]
[1764259077870,0.09201817,3015.7,3015.2,0.03316529]
[1764259078070,0.09201817,3015.7,3015.2,3.34968529]
[1764259078503,0.09201817,3015.7,3015.2,0.03316529]
[1764259078694,0.09201817,3015.7,3015.2,3.34968353]
[1764259079000,0.31044972,3015.6,3015.2,3.34968353]
[1764259079203,0.31044972,3015.5,3015.2,3.34968353]
[1764259079502,0.31044972,3015.4,3015.2,3.34968353]
[1764259079705,0.31044972,3015.3,3015.2,3.34968353]
[1764259080067,0.31044972,3015.3,3015.2,5.10655807]
[1764259082299,0.31044972,3015.3,3015.2,7.44828364]
[1764259082501,0.31044972,3015.3,3015.2,4.61989278]
[1764259082671,0.31044972,3015.3,3015.2,5.10655807]
[1764259083482,0.31044972,3015.3,3015.2,4.65305807]
[1764259083908,0.31044972,3015.3,3015.2,5.10655807]
[1764259085800,0.31044972,3015.3,3015.2,5.07339278]
[1764259087277,0.31044972,3015.3,3015.2,5.10655807]
[1764259087909,0.31044972,3015.3,3015.2,4.65305807]
[1764259088076,0.31044972,3015.3,3015.2,3.34968353]
[1764259088275,0.31044972,3015.3,3015.2,0.96926529]
[1764259088491,0.31044972,3015.3,3015.2,4.28579487]
[1764259088821,0.31044972,3015.3,3015.2,4.25262958]
[1764259093707,0.30964972,3015.3,3015.2,4.25262958]
[1764259093908,0.30964972,3015.3,3015.2,5.04997553]
[1764259094115,0.30964972,3015.3,3015.2,4.59647553]
[1764259094318,0.30964972,3015.3,3015.2,4.29509487]
[1764259095308,0.30964972,3015.3,3015.2,4.26192958]
[1764259097113,0.30964972,3015.3,3015.2,3.31652958]
[1764259097499,0.36804972,3015.3,3015.1,0.001]
[1764259097696,0.0584,3015.3,3015.1,0.03416639]
[1764259097912,0.0584,3015.2,3015.1,3.35080483]
[1764259098708,0.0012,3015.7,3015.1,4.51836748]
[1764259098910,0.0012,3015.7,3015.1,4.51260483]
[1764259099404,0.0012,3015.7,3015.1,7.82924441]
[1764259099617,0.0012,3015.7,3015.1,7.79607802]
[1764259099814,0.0012,3015.7,3015.2,0.03316529]
[1764259100330,0.0012,3015.7,3015.3,3.31641959]
[1764259100531,0.0012,3015.7,3015.4,0.03316309]
[1764259100742,0.0012,3015.7,3015.6,0.4796]
[1764259100919,0.0012,3015.7,3015.4,0.03316309]
[1764259101508,0.0012,3015.7,3015.3,0.03316419]
[1764259102008,0.0012,3015.7,3015.4,0.211]
[1764259102204,0.0012,3015.7,3015.5,0.03316199]
[1764259102809,0.0012,3015.7,3015.5,3.34926317]
[1764259103011,0.0012,3015.7,3015.5,0.03316199]
[1764259103336,0.0012,3015.7,3015.5,3.34935803]
[1764259105643,0.31091081,3015.6,3015.5,3.34935803]
[1764259107551,0.31091081,3015.6,3015.5,3.82895803]
[1764259108138,0.31091081,3015.6,3015.5,0.03316199]
[1764259108139,0.36931081,3015.6,3015.5,0.03316199]
[1764259108715,0.36931081,3015.6,3015.4,0.24416309]
[1764259108923,0.36931081,3015.5,3015.4,0.211]
[1764259110336,0.36931081,3015.5,3015.4,3.52730961]
[1764259112047,0.36931081,3015.5,3015.4,0.211]
[1764259113147,0.36931081,3015.5,3015.4,0.24416309]
[1764259114241,0.36931081,3015.5,3015.4,0.211]
[1764259114427,0.36931081,3015.5,3015.4,3.52730961]
[1764259116033,0.31091081,3015.5,3015.4,3.52730961]
[1764259117225,0.31091081,3015.5,3015.4,5.21194452]
[1764259117521,0.31011081,3015.5,3015.4,5.17878143]
[1764259117722,0.31011081,3015.5,3015.4,4.69128143]
[1764259118021,0.31011081,3015.5,3015.4,1.37497182]
[1764259118225,0.31011081,3015.5,3015.4,4.00690961]
[1764259118443,0.31011081,3015.5,3015.4,3.52730961]
[1764259118924,0.36851081,3015.5,3015.1,6.84521886]
[1764259119128,0.0012,3015.7,3015.2,0.03316529]
[1764259119676,0.0012,3015.7,3015.2,0.52066529]
[1764259119835,0.0012,3015.7,3015.2,1.27682371]
[1764259120935,0.0596,3015.7,3015.2,0.03316529]
[1764259121459,0.0596,3015.7,3015.2,3.34969284]
[1764259123154,3.37558444,3015.7,3015.2,0.03316529]
[1764259123526,0.0584,3015.3,3015.2,0.03316529]
[1764259124153,0.0584,3015.3,3015.1,3.35080414]
[1764259124466,0.0584,3015.2,3015.1,3.35080414]
[1764259124831,0.0584,3015.2,3015.1,0.03416639]
[1764259126562,0.0584,3015.2,3015.1,0.001]
[1764259126763,0.49528766,3015.2,3015.1,0.001]
[1764259127601,3.81181724,3015.2,3015.1,0.001]
[1764259128085,5.15391535,3015.2,3015.1,0.001]
[1764259129179,4.53741135,3015.2,3015.1,0.001]
[1764259129475,4.62210008,3015.2,3015.1,0.001]
[1764259129703,4.72150008,3015.2,3015.1,0.001]
[1764259130662,4.51050008,3015.2,3015.1,0.001]
[1764259130885,4.72150008,3015.2,3015.1,0.001]
[1764259134283,4.75391825,3015.2,3015.1,0.001]
[1764259134483,5.80255364,3015.2,3015.1,0.001]
[1764259134850,5.59155364,3015.2,3015.1,0.001]
[1764259135079,5.80255364,3015.2,3015.1,0.001]
[1764259135955,5.70315364,3015.2,3015.1,0.001]
[1764259136356,5.80255364,3015.2,3015.1,0.001]
[1764259141092,6.10865764,3015.2,3015.1,0.001]
[1764259141396,0.504904,3014.8,3014.7,0.001]
[1764259141599,3.93781458,3014.8,3014.2,0.001]
[1764259141807,3.93781458,3014.8,3013.8,0.001]
[1764259141808,0.405504,3014.4,3013.8,0.001]
[1764259141975,2.79104408,3014.0,3013.8,0.001]
[1764259142197,7.70772843,3014.0,3013.8,0.001]
[1764259142506,8.08687334,3014.0,3013.8,0.001]
[1764259143481,7.87587334,3014.0,3013.8,0.001]
[1764259143793,8.08687334,3014.0,3013.8,0.001]
[1764259147699,1.62317923,3014.0,3013.8,0.001]
[1764259148003,5.07292453,3014.0,3013.8,0.001]
[1764259148179,5.31912453,3014.0,3013.8,0.001]
[1764259148380,4.35402053,3014.0,3013.8,0.001]
[1764259148589,3.83942642,3014.0,3013.8,0.001]
[1764259148902,4.56502053,3014.0,3013.8,0.001]
[1764259149398,1.2471705,3014.0,3013.9,0.9711]
[1764259150397,1.0361705,3014.0,3013.9,0.9711]
[1764259151105,0.31057639,3014.0,3013.9,0.9711]
[1764259151604,0.31057639,3014.1,3013.9,0.9711]
[1764259151790,0.31057639,3014.1,3014.0,0.4506]
[1764259151990,1.0361705,3014.1,3014.0,0.9242]
[1764259152399,0.31057639,3014.1,3014.0,0.9242]
[1764259152703,0.31057639,3014.1,3013.9,0.001]
[1764259152906,0.31057639,3014.0,3013.9,0.001]
[1764259153206,0.31057639,3014.0,3013.9,0.4516]
[1764259153405,0.31057639,3014.0,3013.9,0.9252]
[1764259157294,3.99699998,3014.0,3013.9,0.001]
[1764259157498,4.09639998,3014.0,3013.9,0.001]
[1764259157708,4.34299998,3014.0,3013.9,0.001]
[1764259157896,4.82199409,3014.0,3013.9,0.001]
[1764259158380,4.82399409,3014.0,3013.9,0.001]
[1764259158610,4.85641226,3014.0,3013.9,0.001]
[1764259160998,4.75451226,3014.0,3013.9,0.001]
[1764259161327,4.75941226,3014.0,3013.9,0.001]
[1764259163720,4.85881226,3014.0,3013.9,0.001]
[1764259165026,4.85801226,3014.0,3013.9,0.001]
[1764259166895,4.85311226,3014.0,3013.9,0.452]
[1764259167096,0.31177639,3014.0,3013.9,0.9138]
[1764259168343,0.31177639,3014.0,3013.9,4.23176011]
[1764259170190,0.31177639,3014.0,3013.9,0.9138]
[1764259172807,0.31177639,3014.0,3013.9,4.23176011]
[1764259174316,0.002,3014.0,3013.9,6.57566293]
[1764259174519,0.002,3014.0,3013.9,7.58623543]
[1764259176422,0.002,3014.0,3013.9,5.24233261]
[1764259176807,0.002,3014.0,3013.9,1.9243725]
[1764259177016,0.31227469,3014.0,3013.9,4.26493971]
[1764259179434,0.002,3014.0,3013.9,4.26493971]
[1764259180105,0.31232117,3014.0,3013.9,0.9468]
[1764259180838,0.31232117,3014.0,3013.9,4.26476011]
[1764259183931,0.31482117,3014.0,3013.9,0.001]
[1764259184445,0.31232117,3014.0,3013.9,0.001]
[1764259185242,0.31232117,3014.0,3013.9,0.4617]
[1764259186352,0.002,3014.0,3013.9,4.30763971]
[1764259186534,0.31228745,3014.0,3013.9,4.73850368]
[1764259188646,0.31148745,3014.0,3013.9,4.73850368]
[1764259190446,0.56058745,3014.0,3013.9,0.001]
[1764259191647,0.31148745,3014.0,3013.9,0.9565]
[1764259192617,0.31148745,3014.0,3013.9,4.27446011]
[1764259192817,0.31148745,3014.0,3013.9,0.9565]
[1764259193141,0.31148745,3014.0,3013.9,0.4617]
[1764259195459,0.31148745,3014.0,3013.9,3.77966011]
[1764259196455,0.31148745,3014.0,3013.9,4.27446011]
[1764259197529,0.31148745,3014.0,3013.9,0.9565]
[1764259198037,0.31148745,3014.0,3013.9,4.27446011]
[1764259198829,0.31398745,3014.0,3013.9,0.001]
[1764259199435,0.31148745,3014.0,3013.9,0.001]
[1764259200075,0.0012,3014.0,3013.9,0.001]
[1764259200578,0.41405328,3014.0,3013.9,0.001]
[1764259201083,0.69309071,3014.0,3013.9,0.001]
[1764259201260,0.41405328,3014.0,3013.9,0.001]
[1764259202751,0.66145328,3014.0,3013.9,0.001]
[1764259203449,0.55807145,3014.0,3013.9,0.001]
[1764259204465,0.34707145,3014.0,3013.9,0.001]
[1764259204671,0.31215328,3014.0,3013.9,0.9565]
[1764259205052,0.31465328,3014.0,3013.9,0.001]
[1764259205253,0.31215328,3014.0,3013.9,0.001]
[1764259205786,3.63250331,3014.0,3013.9,0.001]
[1764259205991,1.01290908,3014.0,3013.9,0.001]
[1764259206175,0.31215328,3014.0,3013.9,0.4617]
[1764259206382,0.31215328,3014.0,3013.9,0.9565]
[1764259206771,0.31465328,3014.0,3013.9,0.001]
[1764259206961,0.31215328,3014.0,3013.9,0.4617]
[1764259207456,0.31215328,3014.0,3013.9,0.001]
[1764259207457,0.56205328,3014.0,3013.9,0.001]
[1764259207657,1.18765523,3014.0,3013.9,0.001]
[1764259207853,4.53792343,3014.0,3013.9,0.001]